bitfinex/quotes_SOLUSD_20241110
["timestamp","ask_amount","ask_price","bid_price","bid_amount"]
[1731199473256,13.3322005,201.44,201.38,13.3322005]
[1731199474149,13.3322005,201.45,201.38,13.3322005]
[1731199474940,13.3322005,201.44,201.38,13.3322005]
[1731199475555,13.3322005,201.44,201.37,13.3322005]
[1731199477046,13.3322005,201.44,201.38,13.3322005]
[1731199477545,13.3322005,201.45,201.38,13.3322005]
[1731199477746,13.3322005,201.44,201.38,13.3322005]
[1731199478248,13.3322005,201.43,201.36,13.3322005]
[1731199478445,13.3322005,201.37,201.34,0.74471364]
[1731199478648,15.9701,201.42,201.34,0.74471364]
[1731199478649,13.3322005,201.36,201.34,0.74471364]
[1731199478953,13.3322005,201.35,201.34,0.74471364]
[1731199479263,13.3322005,201.35,201.23,16.4206]
[1731199479458,13.3322005,201.28,201.23,16.4206]
[1731199479648,13.3322005,201.29,201.23,29.7528005]
[1731199480847,13.3322005,201.3,201.23,29.7528005]
[1731199481371,21.31128983,201.34,201.28,21.31128983]
[1731199481666,20.0,201.39,201.28,21.31128983]
[1731199481963,21.31128983,201.36,201.3,21.31128983]
[1731199482159,21.31128983,201.37,201.31,21.31128983]
[1731199482551,21.31128983,201.37,201.3,21.31128983]
[1731199482743,21.31128983,201.36,201.29,21.31128983]
[1731199483143,21.31128983,201.37,201.31,21.31128983]
[1731199483670,21.31128983,201.36,201.29,21.31128983]
[1731199484045,21.31128983,201.37,201.3,21.31128983]
[1731199484450,21.31128983,201.36,201.29,21.31128983]
[1731199484873,21.31128983,201.37,201.3,21.31128983]
[1731199485166,21.31128983,201.37,201.31,21.31128983]
[1731199485362,21.31128983,201.38,201.31,21.31128983]
[1731199486547,21.31128983,201.39,201.33,21.31128983]
[1731199487063,27.70108983,201.4,201.33,21.31128983]
[1731199487449,21.31128983,201.39,201.33,21.31128983]
[1731199488043,21.31128983,201.39,201.32,21.31128983]
[1731199488666,21.31128983,201.39,201.33,21.31128983]
[1731199489663,6.3898,201.4,201.35,21.31128983]
[1731199491469,21.31128983,201.41,201.3,22.05616072]
[1731199491470,21.31128983,201.43,201.37,21.31128983]
[1731199491673,21.31128983,201.45,201.4,21.31128983]
[1731199491979,21.31128983,201.45,201.39,21.31128983]
[1731199492181,21.31128983,201.43,201.37,21.31128983]
[1731199492377,21.31128983,201.42,201.36,21.31128983]
[1731199492676,21.31128983,201.4,201.34,21.31128983]
[1731199493075,21.31128983,201.38,201.32,21.31128983]
[1731199493378,21.31128983,201.4,201.34,21.31128983]
[1731199493783,21.31128983,201.41,201.35,21.31128983]
[1731199494073,21.31128983,201.38,201.31,21.31128983]
[1731199494259,21.31128983,201.37,201.31,21.31128983]
[1731199494654,21.31128983,201.38,201.31,21.31128983]
[1731199494876,21.31128983,201.4,201.34,21.31128983]
[1731199495879,21.31128983,201.41,201.34,21.31128983]
[1731199496579,21.31128983,201.41,201.35,21.31128983]
[1731199496964,21.31128983,201.41,201.34,21.31128983]
[1731199498979,21.31128983,201.4,201.3,0.74487089]
[1731199499180,21.31128983,201.4,201.33,21.31128983]
[1731199499368,21.31128983,201.4,201.34,21.31128983]
[1731199499766,21.31128983,201.38,201.31,21.31128983]
[1731199500078,21.31128983,201.34,201.3,0.74487089]
[1731199500270,41.31128983,201.31,201.3,0.74487089]
[1731199500676,6.1203,201.36,201.3,0.74487089]
[1731199500980,20.0,201.35,201.3,0.74487089]
[1731199501165,6.1203,201.36,201.3,22.05616072]
[1731199501371,6.1203,201.36,201.3,14.06221648]
[1731199501566,6.1203,201.36,201.31,13.31734559]
[1731199501761,5.17337585,201.45,201.35,13.31734559]
[1731199502074,13.31734559,201.45,201.32,20.0]
[1731199502267,13.31734559,201.44,201.38,13.31734559]
[1731199502463,13.31734559,201.47,201.41,13.31734559]
[1731199502667,13.31734559,201.48,201.42,13.31734559]
[1731199502878,13.31734559,201.43,201.33,23.776884]
[1731199503085,13.31734559,201.43,201.36,13.31734559]
[1731199503584,13.31734559,201.42,201.36,13.31734559]
[1731199503766,5.26455699,201.49,201.3,29.36771648]
[1731199503767,13.31734559,201.4,201.33,13.31734559]
[1731199504175,13.31734559,201.39,201.3,16.05037089]
[1731199504370,19.43764559,201.41,201.3,16.05037089]
[1731199504575,6.1203,201.41,201.36,13.31734559]
[1731199504775,19.43764559,201.46,201.4,13.31734559]
[1731199505087,6.1203,201.46,201.41,13.31734559]
[1731199505267,13.31734559,201.44,201.37,13.31734559]
[1731199505474,6.1203,201.46,201.41,13.31734559]
[1731199505787,19.43764559,201.46,201.4,13.31734559]
[1731199505966,19.43764559,201.46,201.39,13.31734559]
[1731199506661,13.31734559,201.43,201.33,23.776884]
[1731199506864,13.31734559,201.42,201.36,13.31734559]
[1731199507060,13.31734559,201.41,201.34,13.31734559]
[1731199507668,13.31734559,201.42,201.35,13.31734559]
[1731199508069,13.31734559,201.41,201.35,13.31734559]
[1731199508270,13.31734559,201.41,201.34,13.31734559]
[1731199509180,13.31734559,201.42,201.35,13.31734559]
[1731199509885,13.31734559,201.4,201.3,16.05037089]
[1731199510290,13.31734559,201.4,201.34,13.31734559]
[1731199510683,13.31734559,201.41,201.34,13.31734559]
[1731199511081,13.31734559,201.37,201.3,16.05037089]
[1731199511271,13.31734559,201.36,201.3,29.36771648]
[1731199511475,13.31734559,201.36,201.3,14.06221648]
[1731199511779,13.31734559,201.36,201.3,0.74487089]
[1731199512684,13.31734559,201.37,201.3,14.06221648]
[1731199512997,13.31734559,201.37,201.31,13.31734559]
[1731199513176,13.31734559,201.39,201.32,13.31734559]
[1731199515297,13.31734559,201.39,201.3,0.74487089]
[1731199515298,13.31734559,201.38,201.31,13.31734559]
[1731199516903,13.31734559,201.37,201.3,14.06221648]
[1731199518100,13.31734559,201.35,201.3,0.74487089]
[1731199518601,13.31734559,201.35,201.29,13.31734559]
[1731199518602,13.31734559,201.35,201.29,4.07221648]
[1731199518794,13.31734559,201.35,201.28,13.31734559]
[1731199519305,13.31734559,201.34,201.27,13.31734559]
[1731199519906,13.31734559,201.33,201.26,28.62284559]
[1731199520404,13.31734559,201.33,201.27,13.31734559]
[1731199521215,13.31734559,201.34,201.28,13.31734559]
[1731199521506,13.31734559,201.34,201.23,4.96]
[1731199521507,6.2333,201.43,201.32,13.31734559]
[1731199521715,6.2333,201.43,201.25,0.2]
[1731199521716,13.31734559,201.39,201.33,13.31734559]
[1731199521895,13.31734559,201.41,201.34,13.31734559]
[1731199522093,13.31734559,201.4,201.34,13.31734559]
[1731199522293,6.2333,201.43,201.34,13.31734559]
[1731199522493,13.31734559,201.4,201.34,13.31734559]
[1731199522711,13.31734559,201.4,201.33,13.31734559]
[1731199523288,6.2333,201.43,201.34,13.31734559]
[1731199523493,6.2333,201.43,201.35,13.31734559]
[1731199523810,13.31734559,201.41,201.34,13.31734559]
[1731199524391,13.31734559,201.4,201.33,13.31734559]
[1731199526515,13.31734559,201.38,201.32,13.31734559]
[1731199527012,20.0,201.42,201.32,13.31734559]
[1731199527194,13.31734559,201.39,201.32,13.31734559]
[1731199527718,20.0,201.42,201.34,13.31734559]
[1731199528014,13.31734559,201.39,201.32,13.31734559]
[1731199529198,13.31734559,201.39,201.33,13.31734559]
[1731199529800,20.0,201.42,201.35,13.31734559]
[1731199529801,13.31734559,201.41,201.35,13.31734559]
[1731199530418,13.31734559,201.42,201.35,13.31734559]
[1731199530617,6.2333,201.43,201.35,13.31734559]
[1731199530810,11.40567716,201.48,201.39,13.31734559]
[1731199531018,11.40567716,201.48,201.33,20.1]
[1731199531019,13.31734559,201.47,201.33,20.1]
[1731199531319,13.31734559,201.41,201.35,13.31734559]
[1731199531522,13.31734559,201.45,201.38,13.31734559]
[1731199531707,6.2333,201.48,201.34,23.876884]
[1731199531905,13.31734559,201.45,201.38,13.31734559]
[1731199532201,13.31734559,201.42,201.35,13.31734559]
[1731199532519,13.31734559,201.41,201.35,13.31734559]
[1731199533005,13.31734559,201.41,201.34,13.31734559]
[1731199533812,20.0,201.47,201.36,13.31734559]
[1731199534315,13.31734559,201.42,201.35,13.31734559]
[1731199535017,13.31734559,201.4,201.33,13.31734559]
[1731199535216,13.31734559,201.4,201.34,13.31734559]
[1731199536213,13.31734559,201.4,201.33,13.31734559]
[1731199536522,20.0,201.47,201.33,13.31734559]
[1731199536523,13.31734559,201.39,201.33,13.31734559]
[1731199536819,13.31734559,201.39,201.32,13.31734559]
[1731199537004,13.31734559,201.39,201.33,13.31734559]
[1731199537198,20.0,201.47,201.3,29.79974559]
[1731199537418,13.31734559,201.41,201.35,13.31734559]
[1731199537627,13.31734559,201.41,201.31,23.776884]
[1731199537628,13.31734559,201.41,201.34,13.31734559]
[1731199537999,6.2333,201.48,201.37,13.31734559]
[1731199538214,13.31734559,201.44,201.37,13.31734559]
[1731199538519,13.31734559,201.42,201.36,13.31734559]
[1731199538820,13.31734559,201.42,201.35,13.31734559]
[1731199539013,13.31734559,201.4,201.33,13.31734559]
[1731199539203,13.31734559,201.43,201.37,13.31734559]
[1731199539405,13.31734559,201.45,201.38,13.31734559]
[1731199539602,13.31734559,201.48,201.41,13.31734559]
[1731199539799,13.31734559,201.5,201.43,13.31734559]
[1731199539996,13.31734559,201.48,201.41,13.31734559]
[1731199540397,13.31734559,201.45,201.39,13.31734559]
[1731199540613,13.31734559,201.4,201.29,15.9423]
[1731199540808,13.31734559,201.32,201.29,15.9423]
[1731199541197,13.31734559,201.3,201.26,0.74488549]
[1731199541416,20.0,201.35,201.26,0.74488549]
[1731199542521,13.31734559,201.29,201.26,0.74488549]
[1731199542823,13.31734559,201.28,201.26,0.74488549]
[1731199543009,13.31734559,201.32,201.26,0.74488549]
[1731199543722,13.31734559,201.34,201.28,13.31734559]
[1731199544134,13.31734559,201.4,201.29,13.31734559]
[1731199544135,13.31734559,201.35,201.29,13.31734559]
[1731199544308,13.31734559,201.37,201.3,13.31734559]
[1731199545112,13.31734559,201.36,201.3,13.31734559]
[1731199545608,13.31734559,201.36,201.29,13.31734559]
[1731199545807,13.31734559,201.35,201.28,37.09422959]
[1731199546824,13.31734559,201.36,201.29,13.31734559]
[1731199547026,6.49,201.41,201.28,23.776884]
[1731199547027,13.31734559,201.37,201.3,13.31734559]
[1731199547321,13.31734559,201.35,201.28,13.31734559]
[1731199547621,13.31734559,201.34,201.27,29.25964559]
[1731199548014,13.31734559,201.31,201.27,15.9423]
[1731199548228,20.0,201.4,201.27,15.9423]
[1731199548409,13.31734559,201.32,201.27,15.9423]
[1731199549308,13.31734559,201.31,201.27,15.9423]
[1731199549932,13.31734559,201.28,201.26,0.74488549]
[1731199550142,13.31734559,201.27,201.26,0.74488549]
[1731199551419,21.32938296,201.27,201.26,0.74488549]
[1731199552130,21.32938296,201.28,201.26,0.74488549]
[1731199552320,21.32938296,201.3,201.26,0.74488549]
[1731199552627,21.32938296,201.31,201.26,0.74488549]
[1731199552841,21.32938296,201.29,201.26,0.74488549]
[1731199553217,21.32938296,201.28,201.26,0.74488549]
[1731199553633,21.32938296,201.3,201.26,0.74488549]
[1731199554217,21.32938296,201.29,201.26,0.74488549]
[1731199554753,21.32938296,201.27,201.26,0.74488549]
[1731199563235,21.32938296,201.28,201.26,0.74488549]
[1731199563431,21.32938296,201.29,201.26,0.74488549]
[1731199563633,21.32938296,201.3,201.26,0.74488549]
[1731199564447,21.32938296,201.29,201.26,0.74488549]
[1731199564946,21.32938296,201.27,201.26,0.74488549]
[1731199566048,21.32938296,201.29,201.26,0.74488549]
[1731199566248,21.32938296,201.3,201.26,0.74488549]
[1731199566444,21.32938296,201.31,201.26,0.74488549]
[1731199566929,21.32938296,201.3,201.26,0.74488549]
[1731199569336,21.32938296,201.27,201.26,0.74488549]
[1731199570435,20.0,201.35,201.26,0.74488549]
[1731199570767,21.32938296,201.3,201.26,0.74488549]
[1731199570945,21.32938296,201.29,201.26,0.74488549]
[1731199571445,13.32316052,201.29,201.26,0.74488549]
[1731199572156,13.32316052,201.28,201.26,0.74488549]
[1731199572540,13.32316052,201.29,201.26,0.74488549]
[1731199572942,13.32316052,201.28,201.26,0.74488549]
[1731199574431,13.32316052,201.27,201.26,0.74488549]
[1731199577842,167.19,201.37,201.26,0.74488549]
[1731199577843,13.32316052,201.28,201.26,0.74488549]
[1731199578553,6.49,201.37,201.26,0.74488549]
[1731199578758,13.32316052,201.33,201.27,13.32316052]
[1731199578939,13.32316052,201.32,201.26,30.18374601]
[1731199579136,13.32316052,201.33,201.26,30.18374601]
[1731199579441,13.32316052,201.35,201.28,13.32316052]
[1731199579636,13.32316052,201.36,201.29,13.32316052]
[1731199579830,6.2745,201.42,201.27,23.776884]
[1731199579831,6.2745,201.42,201.31,13.32316052]
[1731199580046,13.32316052,201.37,201.31,13.32316052]
[1731199580760,13.32316052,201.38,201.31,13.32316052]
[1731199580949,13.32316052,201.37,201.31,13.32316052]
[1731199581266,6.2745,201.47,201.3,20.2]
[1731199581475,8.40815891,201.47,201.33,23.776884]
[1731199581680,13.32316052,201.41,201.34,13.32316052]
[1731199582175,6.2745,201.47,201.33,23.776884]
[1731199582349,13.32316052,201.41,201.35,13.32316052]
[1731199582861,6.12706329,201.51,201.37,13.32316052]
[1731199582862,2.12751805,201.49,201.37,13.32316052]
[1731199583068,13.32316052,201.44,201.37,13.32316052]
[1731199583255,13.32316052,201.46,201.39,13.32316052]
[1731199583455,13.32316052,201.45,201.39,13.32316052]
[1731199583850,13.32316052,201.44,201.38,13.32316052]
[1731199584053,13.32316052,201.5,201.43,13.32316052]
[1731199584355,13.32316052,201.51,201.44,13.32316052]
[1731199584564,6.2745,201.57,201.43,13.32316052]
[1731199584565,13.32316052,201.49,201.43,13.32316052]
[1731199584760,13.32316052,201.48,201.42,13.32316052]
[1731199584962,13.32316052,201.47,201.41,23.776884]
[1731199585166,13.32316052,201.45,201.39,16.1157]
[1731199585350,13.32316052,201.4,201.39,16.1157]
[1731199587754,20.0,201.55,201.39,16.1157]
[1731199588065,13.32316052,201.4,201.39,16.1157]
[1731199589854,13.32316052,201.43,201.4,23.776884]
[1731199590660,13.32316052,201.42,201.4,23.776884]
[1731199590855,13.32316052,201.41,201.4,23.776884]
[1731199591060,13.32316052,201.41,201.39,16.1157]
[1731199591374,13.32316052,201.4,201.39,16.1157]
[1731199592093,13.32316052,201.4,201.36,43.776884]
[1731199592675,13.32316052,201.42,201.36,57.30004452]
[1731199593049,13.32316052,201.41,201.36,43.876884]
[1731199593253,13.32316052,201.41,201.36,43.776884]
[1731199593464,13.32316052,201.41,201.36,43.876884]
[1731199593666,13.32316052,201.39,201.36,43.776884]
[1731199593861,13.32316052,201.38,201.36,43.776884]
[1731199594273,13.32316052,201.39,201.36,43.776884]
[1731199595658,13.32316052,201.4,201.36,43.776884]
[1731199596174,13.32316052,201.37,201.34,16.0271]
[1731199596479,13.32316052,201.5,201.34,16.0271]
[1731199596480,13.32316052,201.39,201.34,16.0271]
[1731199596985,13.32316052,201.4,201.34,29.45026052]
[1731199597157,13.32316052,201.4,201.34,34.41026052]
[1731199597352,13.32316052,201.5,201.35,13.42316052]
[1731199597353,13.32316052,201.41,201.35,13.42316052]
[1731199597658,13.32316052,201.5,201.34,21.0871]
[1731199597659,13.32316052,201.4,201.36,43.776884]
[1731199598376,13.32316052,201.38,201.36,23.776884]
[1731199598580,13.32316052,201.5,201.35,23.776884]
[1731199598581,13.32316052,201.37,201.35,23.776884]
[1731199598781,13.32316052,201.36,201.35,23.776884]
[1731199599261,13.32316052,201.36,201.34,16.0271]
[1731199599583,13.32316052,201.35,201.3,6.0755]
[1731199599777,26.64632104,201.31,201.26,0.74488549]
[1731199600073,13.32316052,201.27,201.26,0.74488549]
[1731199609796,13.32316052,201.27,201.1,15.3114]
[1731199609979,13.32316052,201.13,201.1,15.3114]
[1731199610498,13.32316052,201.11,201.1,15.3114]
[1731199611192,13.32316052,201.13,201.07,6.0755]
[1731199611380,13.32316052,201.14,201.07,19.49866052]
[1731199611579,6.0927,201.2,201.09,23.776884]
[1731199611884,13.32316052,201.14,201.09,23.776884]
[1731199612486,13.32316052,201.16,201.1,13.32316052]
[1731199612797,13.32316052,201.14,201.09,23.776884]
[1731199613003,13.32316052,201.14,201.08,23.776884]
[1731199613298,13.32316052,201.14,201.1,23.776884]
[1731199613502,13.32316052,201.14,201.08,23.776884]
[1731199613887,13.32316052,201.11,201.08,23.776884]
[1731199614082,13.32316052,201.11,201.07,6.0755]
[1731199614593,13.32316052,201.09,201.05,15.3114]
[1731199614992,13.32316052,201.08,201.05,15.3114]
[1731199615598,13.32316052,201.06,201.05,15.3114]
[1731199615899,13.32316052,201.06,201.04,7.70091936]
[1731199616122,13.32316052,201.05,201.04,7.70091936]
[1731199616807,13.32316052,201.05,201.01,4.96]
[1731199617107,13.32316052,201.02,201.01,4.96]
[1731199617300,13.32316052,201.1,201.01,4.96]
[1731199617501,13.32316052,201.03,201.01,4.96]
[1731199618786,13.32316052,201.04,201.01,4.96]
[1731199618981,13.32316052,201.05,201.01,4.96]
[1731199619187,13.32316052,201.08,201.02,37.10004452]
[1731199619404,13.32316052,201.09,201.02,37.10004452]
[1731199620104,13.32316052,201.07,201.02,23.776884]
[1731199620692,13.32316052,201.03,201.01,4.96]
[1731199620909,13.32316052,201.05,201.01,4.96]
[1731199621412,13.32316052,201.08,201.02,13.32316052]
[1731199622097,13.32316052,201.07,201.02,23.776884]
[1731199622294,13.32316052,201.06,201.02,23.776884]
[1731199622496,6.3491,201.19,201.02,23.776884]
[1731199622497,13.32316052,201.04,201.02,23.776884]
[1731199622884,13.32316052,201.05,201.02,23.776884]
[1731199623510,13.32316052,201.06,201.02,23.776884]
[1731199623888,13.32316052,201.05,201.02,23.776884]
[1731199625108,13.32316052,201.07,201.02,23.776884]
[1731199625311,13.32316052,201.06,201.02,23.776884]
[1731199625511,13.32316052,201.07,201.02,23.776884]
[1731199625811,13.32316052,201.1,201.04,13.32316052]
[1731199626006,13.32316052,201.11,201.05,13.32316052]
[1731199626206,13.32316052,201.11,201.06,23.776884]
[1731199626400,6.3491,201.19,201.06,23.776884]
[1731199626600,13.32316052,201.11,201.06,23.776884]
[1731199627414,13.32316052,201.09,201.04,23.776884]
[1731199627611,13.32316052,201.09,201.03,23.776884]
[1731199627915,13.32316052,201.08,201.03,23.776884]
[1731199628414,13.32316052,201.05,201.01,23.776884]
[1731199628814,13.32316052,201.04,201.01,23.776884]
[1731199629402,13.32316052,201.05,201.01,23.776884]
[1731199629598,13.32316052,201.04,201.01,23.776884]
[1731199629905,13.32316052,201.08,201.03,23.776884]
[1731199630891,6.4685,201.25,201.08,23.776884]
[1731199631090,13.32316052,201.19,201.12,13.32316052]
[1731199631298,13.32316052,201.18,201.12,13.32316052]
[1731199631515,13.32316052,201.19,201.13,13.32316052]
[1731199631897,13.32316052,201.18,201.12,13.32316052]
[1731199632096,13.32316052,201.18,201.11,13.32316052]
[1731199632409,13.32316052,201.18,201.12,37.10004452]
[1731199632609,13.32316052,201.19,201.13,13.32316052]
[1731199632816,13.32316052,201.19,201.14,23.776884]
[1731199633318,21.33775587,201.18,201.13,23.776884]
[1731199633611,21.33775587,201.18,201.12,21.33775587]
[1731199633920,21.33775587,201.19,201.13,45.11463987]
[1731199634515,21.33775587,201.14,201.13,23.776884]
[1731199634705,21.33775587,201.14,201.09,15.5231]
[1731199634906,20.0,201.19,201.05,21.33775587]
[1731199635113,20.0,201.19,201.04,15.5231]
[1731199635114,21.33775587,201.1,201.04,36.86085587]
[1731199635916,21.33775587,201.09,201.04,15.5231]
[1731199636403,21.33775587,201.07,201.04,15.5231]
[1731199636722,21.33775587,201.06,201.04,15.5231]
[1731199637119,21.33775587,201.07,201.04,15.5231]
[1731199637508,21.33775587,201.08,201.04,15.5231]
[1731199637806,21.33775587,201.06,201.04,15.5231]
[1731199638000,21.33775587,201.07,201.04,15.5231]
[1731199638225,21.33775587,201.08,201.04,15.5231]
[1731199638425,21.33775587,201.07,201.04,15.5231]
[1731199638902,21.33775587,201.12,201.06,21.33775587]
[1731199639100,27.57705587,201.2,201.09,45.11463987]
[1731199639101,21.33775587,201.15,201.09,45.11463987]
[1731199639312,21.33775587,201.15,201.05,23.776884]
[1731199639313,21.33775587,201.17,201.11,21.33775587]
[1731199639625,21.8203,201.26,201.13,21.33775587]
[1731199640017,21.33775587,201.19,201.12,21.33775587]
[1731199640220,21.33775587,201.21,201.15,21.33775587]
[1731199640421,6.2393,201.26,201.16,45.11463987]
[1731199640723,21.33775587,201.22,201.16,45.11463987]
[1731199641506,21.33775587,201.24,201.18,21.33775587]
[1731199641814,21.33775587,201.26,201.2,21.33775587]
[1731199642008,21.33775587,201.26,201.19,21.33775587]
[1731199642517,21.33775587,201.25,201.18,21.33775587]
[1731199643117,21.33775587,201.25,201.19,21.33775587]
[1731199643901,21.33775587,201.25,201.18,21.33775587]
[1731199644123,21.33775587,201.24,201.17,41.33775587]
[1731199644409,21.33775587,201.24,201.18,23.776884]
[1731199644721,21.33775587,201.32,201.24,23.776884]
[1731199644918,21.33775587,201.3,201.24,23.776884]
[1731199645224,6.2393,201.38,201.2,6.6001]
[1731199645225,21.33775587,201.27,201.22,23.776884]
[1731199645401,21.33775587,201.27,201.21,23.776884]
[1731199645605,21.33775587,201.25,201.16,20.0]
[1731199645820,21.33775587,201.27,201.2,21.33775587]
[1731199646109,21.33775587,201.3,201.23,21.33775587]
[1731199646402,6.2393,201.38,201.29,45.11463987]
[1731199646803,21.8203,201.47,201.28,23.776884]
[1731199647612,21.33775587,201.37,201.3,21.33775587]
[1731199648216,23.776884,201.46,201.32,21.33775587]
[1731199648429,21.33775587,201.39,201.32,21.33775587]
[1731199648627,21.33775587,201.38,201.31,21.33775587]
[1731199649927,21.33775587,201.39,201.31,21.33775587]
[1731199650321,23.776884,201.46,201.31,21.33775587]
[1731199650322,21.33775587,201.38,201.31,21.33775587]
[1731199651005,21.33775587,201.36,201.29,21.33775587]
[1731199651210,21.33775587,201.34,201.28,23.776884]
[1731199651427,21.33775587,201.4,201.27,37.07195587]
[1731199651428,21.33775587,201.33,201.27,15.7342]
[1731199651807,21.33775587,201.32,201.27,15.7342]
[1731199653030,21.33775587,201.34,201.27,37.07195587]
[1731199653324,21.33775587,201.4,201.28,21.33775587]
[1731199653325,21.33775587,201.35,201.28,21.33775587]
[1731199653815,21.33775587,201.34,201.28,21.33775587]
[1731199654127,21.33775587,201.35,201.28,21.33775587]
[1731199654511,21.33775587,201.34,201.27,37.07195587]
[1731199655527,21.33775587,201.34,201.27,37.77519316]
[1731199656213,21.33775587,201.35,201.29,21.33775587]
[1731199656419,21.33775587,201.35,201.29,19.83775387]
[1731199656725,21.33775587,201.35,201.28,21.33775587]
[1731199657131,21.33775587,201.34,201.27,37.77519316]
[1731199657320,21.33775587,201.33,201.27,16.43743729]
[1731199657506,21.33775587,201.4,201.27,0.70323729]
[1731199657507,21.33775587,201.29,201.27,0.70323729]
[1731199657706,21.33775587,201.28,201.27,0.70323729]
[1731199663313,41.33775587,201.28,201.27,0.70323729]
[1731199664611,43.776884,201.27,201.14,4.80568811]
[1731199664833,21.33775587,201.18,201.14,4.80568811]
[1731199665136,21.33775587,201.18,201.12,6.6173]
[1731199665520,21.33775587,201.18,201.12,27.95505587]
[1731199665723,21.33775587,201.19,201.13,21.33775587]
[1731199666331,21.33775587,201.2,201.13,21.33775587]
[1731199666533,21.33775587,201.22,201.16,21.33775587]
[1731199666725,21.33775587,201.23,201.17,21.33775587]
[1731199666925,21.33775587,201.24,201.18,21.33775587]
[1731199667234,21.33775587,201.24,201.17,21.33775587]
[1731199668021,6.4423,201.28,201.16,21.33775587]
[1731199668022,21.33775587,201.23,201.16,21.33775587]
[1731199668224,21.33775587,201.19,201.14,4.80568811]
[1731199668433,21.33775587,201.17,201.14,4.80568811]
[1731199668624,21.33775587,201.17,201.12,4.80568811]
[1731199668937,21.33775587,201.17,201.11,41.84344398]
[1731199669439,21.33775587,201.18,201.12,21.33775587]
[1731199669625,21.33775587,201.18,201.13,20.0]
[1731199670027,21.33775587,201.18,201.12,20.0]
[1731199671041,21.33775587,201.16,201.11,20.50568811]
[1731199672242,20.0,201.26,201.15,21.33775587]
[1731199672421,21.33775587,201.25,201.18,21.33775587]
[1731199672625,21.33775587,201.26,201.19,21.33775587]
[1731199672842,21.33775587,201.25,201.18,21.33775587]
[1731199673434,21.33775587,201.25,201.19,21.33775587]
[1731199673828,21.33775587,201.25,201.18,21.33775587]
[1731199674332,21.33775587,201.25,201.18,26.14344398]
[1731199674532,21.33775587,201.25,201.19,21.33775587]
[1731199675046,21.33775587,201.25,201.19,26.14963918]
[1731199675952,21.33775587,201.27,201.21,21.33775587]
[1731199676137,21.33775587,201.28,201.22,21.33775587]
[1731199676340,21.33775587,201.27,201.2,26.14963918]
[1731199676530,21.33775587,201.25,201.2,4.81188331]
[1731199677133,21.33775587,201.26,201.2,24.81188331]
[1731199677336,15.4359,201.31,201.22,4.81188331]
[1731199677337,21.33775587,201.27,201.22,4.81188331]
[1731199678444,21.33775587,201.27,201.21,20.0]
[1731199678747,21.33775587,201.26,201.22,4.81085198]
[1731199679632,21.33775587,201.27,201.22,4.81085198]
[1731199679833,21.33775587,201.29,201.23,4.81085198]
[1731199680033,21.33775587,201.29,201.24,4.81085198]
[1731199680448,21.33775587,201.29,201.25,4.81085198]
[1731199682252,21.33775587,201.28,201.25,4.81085198]
[1731199682431,21.33775587,201.29,201.26,4.81085198]
[1731199682633,21.33775587,201.3,201.26,4.81085198]
[1731199682933,21.33775587,201.32,201.26,26.14860785]
[1731199683133,21.33775587,201.34,201.29,4.81085198]
[1731199683350,6.2131,201.38,201.3,4.81085198]
[1731199683544,6.2131,201.38,201.29,4.81085198]
[1731199683742,6.2131,201.38,201.26,4.81085198]
[1731199684147,21.33775587,201.27,201.26,4.81085198]
[1731199686746,21.33775587,201.27,201.24,4.81085198]
[1731199686930,21.33775587,201.25,201.24,4.82272933]
[1731199687130,21.33775587,201.25,201.23,4.82272933]
[1731199687429,21.33775587,201.24,201.23,4.82272933]
[1731199687646,21.33775587,201.25,201.23,4.82272933]
[1731199687950,21.33775587,201.24,201.22,0.65863227]
[1731199688252,21.33775587,201.27,201.22,20.65863227]
[1731199688426,21.33775587,201.26,201.25,4.8223819]
[1731199688748,21.33775587,201.26,201.24,4.8223819]
[1731199689450,21.33775587,201.25,201.24,4.8223819]
[1731199689751,21.33775587,201.25,201.23,4.8223819]
[1731199690757,21.33775587,201.24,201.23,4.8223819]
[1731199691153,21.33775587,201.26,201.23,24.8223819]
[1731199691355,21.33775587,201.28,201.23,20.0]
[1731199691539,21.33775587,201.29,201.26,4.81862363]
[1731199691736,6.2131,201.38,201.27,4.81862363]
[1731199691940,6.2131,201.38,201.25,20.0]
[1731199691941,6.2131,201.38,201.28,4.81862363]
[1731199692156,6.2131,201.38,201.31,4.81862363]
[1731199692157,0.1,201.35,201.31,4.81862363]
[1731199692348,0.1,201.35,201.22,20.65863227]
[1731199692661,21.33775587,201.23,201.22,0.65863227]
[1731199692839,21.33775587,201.23,201.08,21.5495]
[1731199692840,42.67551174,201.23,201.08,21.5495]
[1731199693040,21.33775587,201.11,201.08,21.5495]
[1731199694355,21.33775587,201.11,201.09,20.0]
[1731199694556,21.33775587,201.1,201.09,20.0]
[1731199694759,21.33775587,201.12,201.09,20.0]
[1731199694965,21.33775587,201.2,201.09,20.0]